[Event "*** Titled Tuesday Blitz"]
[Site "Chess.com"]
[Date "2021.02.16"]
[Round "4"]
[White "Isajevsky_Anton"]
[Black "dretch"]
[Result "0-1"]
[WhiteElo "2540"]
[BlackElo "2841"]
[TimeControl "180+1"]
[EndTime "10:43:04 PST"]
[Termination "dretch won on time"]

1. c4 {[%clk 0:03:00.9]} 1... c6 {[%clk 0:02:55.8]} 2. Nf3 {[%clk 0:03:00.6]}
2... d5 {[%clk 0:02:55.6]} 3. e3 {[%clk 0:03:00.6]} 3... Nf6 {[%clk 0:02:52.4]}
4. Nc3 {[%clk 0:02:59.5]} 4... Bf5 {[%clk 0:02:51.1]} 5. cxd5 {[%clk 0:02:54.4]}
5... cxd5 {[%clk 0:02:50.8]} 6. Qb3 {[%clk 0:02:54.1]} 6... Bc8 {[%clk
0:02:50.5]} 7. Bb5+ {[%clk 0:02:33.3]} 7... Nc6 {[%clk 0:02:42.7]} 8. Ne5 {[%clk
0:02:24]} 8... Qd6 {[%clk 0:02:42.6]} 9. d4 {[%clk 0:02:21.5]} 9... e6 {[%clk
0:02:37.4]} 10. O-O {[%clk 0:02:16.1]} 10... Bd7 {[%clk 0:02:36.2]} 11. f4
{[%clk 0:02:13.7]} 11... Be7 {[%clk 0:02:28.2]} 12. Bd2 {[%clk 0:02:08.7]} 12...
O-O {[%clk 0:02:24.5]} 13. Bd3 {[%clk 0:01:36.5]} 13... Rfc8 {[%clk 0:01:54.1]}
14. Rf3 {[%clk 0:01:04.1]} 14... Nb4 {[%clk 0:01:04.8]} 15. Bb1 {[%clk
0:00:53.7]} 15... Be8 {[%clk 0:00:49.2]} 16. Rh3 {[%clk 0:00:40.9]} 16... h5
{[%clk 0:00:21.3]} 17. Qd1 {[%clk 0:00:25.8]} 17... g6 {[%clk 0:00:14.3]} 18. g4
{[%clk 0:00:25.3]} 18... Nxg4 {[%clk 0:00:09.6]} 19. Nxg4 {[%clk 0:00:25]} 19...
hxg4 {[%clk 0:00:10]} 20. Qxg4 {[%clk 0:00:25.5]} 20... Bf6 {[%clk 0:00:09.3]}
21. a3 {[%clk 0:00:17.9]} 21... Qa6 {[%clk 0:00:08.4]} 22. f5 {[%clk 0:00:12.9]}
22... exf5 {[%clk 0:00:03]} 23. Bxf5 {[%clk 0:00:13.7]} 23... Rd8 {[%clk
0:00:03.5]} 24. Rf1 {[%clk 0:00:13.1]} 24... Nc6 {[%clk 0:00:02.5]} 25. Bxg6
{[%clk 0:00:09.7]} 25... Qxf1+ {[%clk 0:00:02.1]} 26. Kxf1 {[%clk 0:00:09.6]}
26... fxg6 {[%clk 0:00:03]} 27. Qe6+ {[%clk 0:00:08.5]} 27... Kg7 {[%clk
0:00:02.9]} 28. Nxd5 {[%clk 0:00:08.3]} 28... Bg5 {[%clk 0:00:01.5]} 29. Bc3
{[%clk 0:00:06.7]} 29... Bd7 {[%clk 0:00:01.5]} 30. Qe4 {[%clk 0:00:02.9]} 30...
Bxh3+ {[%clk 0:00:02.4]} 31. Ke1 {[%clk 0:00:02.1]} 31... Rf8 {[%clk 0:00:02.5]}
32. Nf4 {[%clk 0:00:02]} 32... Bxf4 {[%clk 0:00:02.4]} 33. exf4 {[%clk 0:00:02]}
33... Rae8 {[%clk 0:00:02.1]} 34. d5+ {[%clk 0:00:02.9]} 34... Kh7 {[%clk
0:00:02.6]} 35. Be5 {[%clk 0:00:03.6]} 35... Nxe5 {[%clk 0:00:02.7]} 36. fxe5
{[%clk 0:00:04.5]} 36... Rf5 {[%clk 0:00:02.9]} 37. e6 {[%clk 0:00:04.6]} 37...
Rh5 {[%clk 0:00:03.1]} 38. e7 {[%clk 0:00:04.4]} 38... Bd7 {[%clk 0:00:02.2]}
39. d6 {[%clk 0:00:04.9]} 39... Rf5 {[%clk 0:00:01.3]} 40. Qh4+ {[%clk
0:00:04.7]} 40... Kg7 {[%clk 0:00:01.3]} 41. Qd4+ {[%clk 0:00:04.8]} 41... Kf7
{[%clk 0:00:01.5]} 42. Qxa7 {[%clk 0:00:04.7]} 42... Ke6 {[%clk 0:00:01.9]} 43.
Qxb7 {[%clk 0:00:04.9]} 43... Re5+ {[%clk 0:00:02.8]} 44. Kf2 {[%clk 0:00:04.5]}
44... Kxd6 {[%clk 0:00:03.7]} 45. Qb6+ {[%clk 0:00:04]} 45... Kxe7 {[%clk
0:00:04]} 46. b4 {[%clk 0:00:03.6]} 46... Re6 {[%clk 0:00:04.4]} 47. Qc5+ {[%clk
0:00:03.6]} 47... Kf7 {[%clk 0:00:04.8]} 48. b5 {[%clk 0:00:03.7]} 48... R8e7
{[%clk 0:00:05.7]} 49. a4 {[%clk 0:00:03.9]} 49... Rf6+ {[%clk 0:00:06.6]} 50.
Kg3 {[%clk 0:00:03.9]} 50... Bf5 {[%clk 0:00:06.9]} 51. a5 {[%clk 0:00:03.9]}
51... Be4 {[%clk 0:00:07.6]} 52. b6 {[%clk 0:00:04]} 52... Rf3+ {[%clk
0:00:07.9]} 53. Kg4 {[%clk 0:00:04.5]} 53... Ra3 {[%clk 0:00:07.7]} 54. Qxa3
{[%clk 0:00:04]} 54... Bf5+ {[%clk 0:00:03.1]} 55. Kg5 {[%clk 0:00:02.8]} 55...
Re4 {[%clk 0:00:02.6]} 56. Qb3+ {[%clk 0:00:03]} 56... Kg7 {[%clk 0:00:02.5]}
57. Qb2+ {[%clk 0:00:02.5]} 57... Kf7 {[%clk 0:00:02.6]} 58. Qf6+ {[%clk
0:00:02]} 58... Ke8 {[%clk 0:00:02.1]} 0-1

[Event "*** Titled Tuesday Blitz"]
[Site "Chess.com"]
[Date "2021.02.16"]
[Round "4"]
[White "szefru"]
[Black "Dave_ChessMate"]
[Result "0-1"]
[WhiteElo "2264"]
[BlackElo "2442"]
[TimeControl "180+1"]
[EndTime "10:43:06 PST"]
[Termination "Dave_ChessMate won by resignation"]

1. Nc3 {[%clk 0:03:00.9]} 1... d5 {[%clk 0:02:59.8]} 2. d4 {[%clk 0:03:00.8]}
2... Nf6 {[%clk 0:02:59.3]} 3. Nf3 {[%clk 0:03:01]} 3... e6 {[%clk 0:02:57.8]}
4. Bf4 {[%clk 0:03:01.1]} 4... a6 {[%clk 0:02:57.4]} 5. e3 {[%clk 0:03:01.1]}
5... c5 {[%clk 0:02:57.2]} 6. Be2 {[%clk 0:02:58.6]} 6... Nc6 {[%clk 0:02:56.4]}
7. O-O {[%clk 0:02:56.3]} 7... Be7 {[%clk 0:02:55.5]} 8. a3 {[%clk 0:02:53.7]}
8... O-O {[%clk 0:02:53.3]} 9. Na4 {[%clk 0:02:53.4]} 9... c4 {[%clk 0:02:44.8]}
10. Nc3 {[%clk 0:02:51.7]} 10... b5 {[%clk 0:02:36.9]} 11. Ne5 {[%clk
0:02:50.4]} 11... Nxe5 {[%clk 0:02:31.6]} 12. Bxe5 {[%clk 0:02:51.3]} 12... b4
{[%clk 0:02:25.5]} 13. axb4 {[%clk 0:02:49.4]} 13... Bxb4 {[%clk 0:02:26.4]} 14.
Nb5 {[%clk 0:02:29.9]} 14... Qb6 {[%clk 0:02:11.8]} 15. Na3 {[%clk 0:02:05.5]}
15... Ne4 {[%clk 0:02:04.3]} 16. Qc1 {[%clk 0:01:24.8]} 16... Bd2 {[%clk
0:01:43.7]} 17. Qb1 {[%clk 0:01:20.6]} 17... f6 {[%clk 0:01:24.4]} 18. Bg3
{[%clk 0:01:14.6]} 18... Bb4 {[%clk 0:01:23.9]} 19. Qc1 {[%clk 0:01:11.3]} 19...
Bd7 {[%clk 0:01:21.3]} 20. c3 {[%clk 0:01:09.7]} 20... Be7 {[%clk 0:01:19.7]}
21. f3 {[%clk 0:01:04.6]} 21... Nxg3 {[%clk 0:01:18.8]} 22. hxg3 {[%clk
0:01:05.5]} 22... Rfb8 {[%clk 0:01:18.8]} 23. Ra2 {[%clk 0:01:01.5]} 23... Qb3
{[%clk 0:01:17]} 24. Qa1 {[%clk 0:00:57.7]} 24... Rb6 {[%clk 0:01:10.6]} 25. Bd1
{[%clk 0:00:55.7]} 25... Bd6 {[%clk 0:00:51.5]} 26. Bxb3 {[%clk 0:00:53.3]}
26... cxb3 {[%clk 0:00:52.4]} 27. Nb1 {[%clk 0:00:49.3]} 27... bxa2 {[%clk
0:00:52.1]} 28. Qxa2 {[%clk 0:00:49.9]} 28... a5 {[%clk 0:00:48]} 29. e4 {[%clk
0:00:47.8]} 29... Bb5 {[%clk 0:00:43]} 30. Re1 {[%clk 0:00:45.4]} 30... Bc4
{[%clk 0:00:43.3]} 31. Qa4 {[%clk 0:00:43.4]} 31... Bxg3 {[%clk 0:00:39.8]} 32.
Rd1 {[%clk 0:00:41.3]} 32... Rxb2 {[%clk 0:00:20.4]} 33. Qc6 {[%clk 0:00:40.3]}
33... Rab8 {[%clk 0:00:11.4]} 34. Qxe6+ {[%clk 0:00:39.8]} 34... Kh8 {[%clk
0:00:11.5]} 35. Na3 {[%clk 0:00:33.7]} 35... Bb3 {[%clk 0:00:07.9]} 36. Rf1
{[%clk 0:00:31.3]} 36... dxe4 {[%clk 0:00:07.6]} 37. Qg4 {[%clk 0:00:26.1]}
37... Bd6 {[%clk 0:00:05.2]} 38. fxe4 {[%clk 0:00:25.4]} 38... Bxa3 {[%clk
0:00:04.5]} 39. e5 {[%clk 0:00:25.1]} 39... Be7 {[%clk 0:00:03.6]} 40. exf6
{[%clk 0:00:24.6]} 40... Bxf6 {[%clk 0:00:04.5]} 41. Qg3 {[%clk 0:00:24.8]}
41... Bg8 {[%clk 0:00:04.3]} 42. d5 {[%clk 0:00:22.6]} 42... Bxd5 {[%clk
0:00:03.6]} 43. Ra1 {[%clk 0:00:19.8]} 43... Rxg2+ {[%clk 0:00:03.6]} 44. Qxg2
{[%clk 0:00:19.6]} 44... Bxg2 {[%clk 0:00:04.5]} 45. Kxg2 {[%clk 0:00:20.5]}
45... Bxc3 {[%clk 0:00:04.3]} 46. Rc1 {[%clk 0:00:19.5]} 46... Bb4 {[%clk
0:00:04.8]} 47. Rc4 {[%clk 0:00:19]} 47... Rg8 {[%clk 0:00:05.7]} 48. Kf3 {[%clk
0:00:19]} 48... h6 {[%clk 0:00:06]} 49. Kg4 {[%clk 0:00:19.2]} 49... Kh7 {[%clk
0:00:05.9]} 50. Kh5 {[%clk 0:00:19.4]} 50... Rf8 {[%clk 0:00:06.2]} 51. Kg4
{[%clk 0:00:20.3]} 51... Rf6 {[%clk 0:00:06.3]} 52. Kh5 {[%clk 0:00:20.2]} 52...
Rg6 {[%clk 0:00:07.2]} 53. Kh4 {[%clk 0:00:19.1]} 53... Be7+ {[%clk 0:00:06.4]}
54. Kh5 {[%clk 0:00:18.8]} 54... Bf6 {[%clk 0:00:07.3]} 55. Ra4 {[%clk
0:00:17.3]} 55... Rg5+ {[%clk 0:00:05.3]} 56. Kh4 {[%clk 0:00:17.3]} 56... Rb5+
{[%clk 0:00:05.8]} 57. Kg4 {[%clk 0:00:17.4]} 57... Rb4+ {[%clk 0:00:06.1]} 58.
Rxb4 {[%clk 0:00:17.5]} 58... axb4 {[%clk 0:00:07]} 0-1

[Event "*** Titled Tuesday Blitz"]
[Site "Chess.com"]
[Date "2021.02.16"]
[Round "4"]
[White "FMOlexandrProhorov"]
[Black "kobemagic"]
[Result "0-1"]
[WhiteElo "2098"]
[BlackElo "2387"]
[TimeControl "180+1"]
[EndTime "10:43:06 PST"]
[Termination "kobemagic won by checkmate"]

1. e4 {[%clk 0:03:00.9]} 1... Nf6 {[%clk 0:02:58.5]} 2. e5 {[%clk 0:03:00.5]}
2... Nd5 {[%clk 0:02:58.5]} 3. c4 {[%clk 0:03:01.4]} 3... Nb6 {[%clk 0:02:58.2]}
4. a4 {[%clk 0:03:02.3]} 4... a5 {[%clk 0:02:57.9]} 5. d4 {[%clk 0:03:01.9]}
5... d6 {[%clk 0:02:58.2]} 6. exd6 {[%clk 0:03:02.8]} 6... exd6 {[%clk
0:02:59.1]} 7. Nc3 {[%clk 0:03:03.6]} 7... Be7 {[%clk 0:02:57.3]} 8. Nf3 {[%clk
0:03:03.6]} 8... Bg4 {[%clk 0:02:56.4]} 9. Be2 {[%clk 0:03:03.5]} 9... Nc6
{[%clk 0:02:56.7]} 10. b3 {[%clk 0:03:03.2]} 10... O-O {[%clk 0:02:55.9]} 11.
O-O {[%clk 0:03:02.1]} 11... Bf6 {[%clk 0:02:56.4]} 12. Be3 {[%clk 0:03:00.9]}
12... Re8 {[%clk 0:02:55.8]} 13. h3 {[%clk 0:03:00.3]} 13... Bh5 {[%clk
0:02:53.1]} 14. Rc1 {[%clk 0:03:00.7]} 14... Nb4 {[%clk 0:02:51.3]} 15. Re1
{[%clk 0:02:49.5]} 15... c6 {[%clk 0:02:48.1]} 16. d5 {[%clk 0:02:39.8]} 16...
c5 {[%clk 0:02:42.7]} 17. Nb5 {[%clk 0:02:35]} 17... Rxe3 {[%clk 0:02:17]} 18.
fxe3 {[%clk 0:02:34.6]} 18... Qe7 {[%clk 0:02:17.3]} 19. Bf1 {[%clk 0:02:32.4]}
19... Bg6 {[%clk 0:01:57.7]} 20. Qd2 {[%clk 0:02:24]} 20... Be4 {[%clk 0:01:54]}
21. Qf2 {[%clk 0:02:21]} 21... Nd7 {[%clk 0:01:49]} 22. Qg3 {[%clk 0:02:20.3]}
22... Bxf3 {[%clk 0:01:42.3]} 23. gxf3 {[%clk 0:02:07.9]} 23... Ne5 {[%clk
0:01:35.6]} 24. Rcd1 {[%clk 0:01:57.5]} 24... Bh4 {[%clk 0:01:32.8]} 25. Qg2
{[%clk 0:01:52.6]} 25... Bxe1 {[%clk 0:01:28]} 26. Rxe1 {[%clk 0:01:53.5]} 26...
Rd8 {[%clk 0:01:17.3]} 27. e4 {[%clk 0:01:51.3]} 27... Qf6 {[%clk 0:01:14.5]}
28. Be2 {[%clk 0:01:33.5]} 28... Qf4 {[%clk 0:01:12.1]} 29. Rf1 {[%clk
0:01:22.7]} 29... Nc2 {[%clk 0:01:05.6]} 30. Rf2 {[%clk 0:01:18.1]} 30... Nd4
{[%clk 0:00:58.8]} 31. Bd1 {[%clk 0:01:13.3]} 31... Nxb5 {[%clk 0:00:57.3]} 32.
axb5 {[%clk 0:00:53.5]} 32... b6 {[%clk 0:00:54.9]} 33. Rf1 {[%clk 0:00:38.3]}
33... a4 {[%clk 0:00:51.5]} 34. bxa4 {[%clk 0:00:35.6]} 34... Nxc4 {[%clk
0:00:51.5]} 35. Qe2 {[%clk 0:00:35.3]} 35... Ne3 {[%clk 0:00:45.2]} 36. Re1
{[%clk 0:00:22.8]} 36... Qg3+ {[%clk 0:00:44.8]} 37. Kh1 {[%clk 0:00:22.3]}
37... Qxh3+ {[%clk 0:00:44.3]} 38. Kg1 {[%clk 0:00:22.4]} 38... Qg3+ {[%clk
0:00:32.1]} 39. Kh1 {[%clk 0:00:22]} 39... Nxd1 {[%clk 0:00:29.5]} 40. Rxd1
{[%clk 0:00:14.9]} 40... Re8 {[%clk 0:00:24.1]} 41. Qg2 {[%clk 0:00:14.5]} 41...
Qe5 {[%clk 0:00:20.1]} 42. a5 {[%clk 0:00:12.3]} 42... bxa5 {[%clk 0:00:19.5]}
43. Qd2 {[%clk 0:00:11.5]} 43... Qg3 {[%clk 0:00:16.3]} 44. Qg2 {[%clk
0:00:11.4]} 44... Qe5 {[%clk 0:00:15.7]} 45. Qd2 {[%clk 0:00:10.9]} 45... a4
{[%clk 0:00:14.5]} 46. b6 {[%clk 0:00:09.6]} 46... Rb8 {[%clk 0:00:14.4]} 47.
Qa5 {[%clk 0:00:09.5]} 47... Qb2 {[%clk 0:00:12.2]} 48. Qxa4 {[%clk 0:00:07.8]}
48... Qxb6 {[%clk 0:00:12.1]} 49. Ra1 {[%clk 0:00:07.4]} 49... h6 {[%clk
0:00:11]} 50. Qd7 {[%clk 0:00:07.5]} 50... Rd8 {[%clk 0:00:09.5]} 51. Qe7 {[%clk
0:00:05.1]} 51... Rb8 {[%clk 0:00:08]} 52. Ra7 {[%clk 0:00:03.1]} 52... Qb1+
{[%clk 0:00:06.6]} 53. Kg2 {[%clk 0:00:02.4]} 53... Rb2+ {[%clk 0:00:06.9]} 54.
Kg3 {[%clk 0:00:02.7]} 54... Qg1+ {[%clk 0:00:07.1]} 55. Kf4 {[%clk 0:00:03.1]}
55... Qh2+ {[%clk 0:00:07.1]} 56. Ke3 {[%clk 0:00:02.3]} 56... Qd2# {[%clk
0:00:06.9]} 0-1

[Event "*** Titled Tuesday Blitz"]
[Site "Chess.com"]
[Date "2021.02.16"]
[Round "4"]
[White "politeplayer"]
[Black "NiranjanNavalgund"]
[Result "1/2-1/2"]
[WhiteElo "2223"]
[BlackElo "2465"]
[TimeControl "180+1"]
[EndTime "10:43:07 PST"]
[Termination "Game drawn - insufficient material"]

1. e4 {[%clk 0:03:00.9]} 1... e5 {[%clk 0:02:58.3]} 2. Nf3 {[%clk 0:02:59.1]}
2... Nc6 {[%clk 0:02:57.9]} 3. d4 {[%clk 0:02:59.4]} 3... exd4 {[%clk
0:02:57.4]} 4. Bc4 {[%clk 0:03:00]} 4... Bc5 {[%clk 0:02:53]} 5. O-O {[%clk
0:02:57]} 5... Nf6 {[%clk 0:02:52.4]} 6. e5 {[%clk 0:02:54.3]} 6... d5 {[%clk
0:02:52.4]} 7. Be2 {[%clk 0:02:50.8]} 7... Ne4 {[%clk 0:02:44.6]} 8. Nbd2 {[%clk
0:02:42.5]} 8... O-O {[%clk 0:02:42.3]} 9. Nb3 {[%clk 0:02:38.6]} 9... Bb6
{[%clk 0:02:42.5]} 10. a4 {[%clk 0:02:35.7]} 10... a5 {[%clk 0:02:42.1]} 11. Bb5
{[%clk 0:02:24.6]} 11... Bg4 {[%clk 0:02:40.5]} 12. h3 {[%clk 0:02:19.8]} 12...
Bxf3 {[%clk 0:02:37.7]} 13. gxf3 {[%clk 0:02:06.8]} 13... Ng5 {[%clk 0:02:34.9]}
14. Bxc6 {[%clk 0:02:01.7]} 14... bxc6 {[%clk 0:02:27.7]} 15. f4 {[%clk
0:01:39]} 15... Ne4 {[%clk 0:02:13.6]} 16. Nxd4 {[%clk 0:01:21.6]} 16... Qh4
{[%clk 0:02:12]} 17. Ra3 {[%clk 0:01:19.4]} 17... f6 {[%clk 0:02:06.1]} 18. Nf5
{[%clk 0:00:59.5]} 18... Nxf2 {[%clk 0:01:55.3]} 19. Nxh4 {[%clk 0:00:48.7]}
19... Nxd1+ {[%clk 0:01:55.3]} 20. Kg2 {[%clk 0:00:44.7]} 20... g5 {[%clk
0:01:35.1]} 21. fxg5 {[%clk 0:00:33]} 21... fxg5 {[%clk 0:01:34.8]} 22. Nf3
{[%clk 0:00:33.6]} 22... Nxb2 {[%clk 0:01:19.9]} 23. Bxb2 {[%clk 0:00:31.5]}
23... h6 {[%clk 0:01:20.4]} 24. Rc3 {[%clk 0:00:19.6]} 24... c5 {[%clk
0:01:19.3]} 25. Ba3 {[%clk 0:00:19.4]} 25... d4 {[%clk 0:01:18.5]} 26. Rc4
{[%clk 0:00:19.2]} 26... Rf4 {[%clk 0:01:00]} 27. Bxc5 {[%clk 0:00:17.7]} 27...
g4 {[%clk 0:00:58.5]} 28. hxg4 {[%clk 0:00:16.6]} 28... Rxg4+ {[%clk 0:00:58.6]}
29. Kh3 {[%clk 0:00:16.4]} 29... h5 {[%clk 0:00:58.1]} 30. Bxb6 {[%clk
0:00:15.6]} 30... cxb6 {[%clk 0:00:59]} 31. Rg1 {[%clk 0:00:13.2]} 31... Rxg1
{[%clk 0:00:53.3]} 32. Nxg1 {[%clk 0:00:13]} 32... Re8 {[%clk 0:00:52]} 33. Nf3
{[%clk 0:00:12]} 33... Rf8 {[%clk 0:00:52.4]} 34. Kg3 {[%clk 0:00:11.6]} 34...
h4+ {[%clk 0:00:52]} 35. Nxh4 {[%clk 0:00:10.8]} 35... Rf1 {[%clk 0:00:52.2]}
36. Rxd4 {[%clk 0:00:09.7]} 36... Rc1 {[%clk 0:00:52]} 37. Rd2 {[%clk 0:00:09]}
37... Kf7 {[%clk 0:00:51.2]} 38. Nf5 {[%clk 0:00:07.9]} 38... Ke6 {[%clk
0:00:51.3]} 39. Nd4+ {[%clk 0:00:07.3]} 39... Kxe5 {[%clk 0:00:50.8]} 40. Nf3+
{[%clk 0:00:07.3]} 40... Ke4 {[%clk 0:00:49]} 41. Rd4+ {[%clk 0:00:06.9]} 41...
Ke3 {[%clk 0:00:48.8]} 42. Rc4 {[%clk 0:00:05.5]} 42... Ra1 {[%clk 0:00:47.6]}
43. Rc3+ {[%clk 0:00:05.5]} 43... Ke4 {[%clk 0:00:45.9]} 44. Rb3 {[%clk
0:00:05.2]} 44... Rxa4 {[%clk 0:00:43.4]} 45. Rxb6 {[%clk 0:00:04.9]} 45... Ra2
{[%clk 0:00:43.1]} 46. Re6+ {[%clk 0:00:04.5]} 46... Kd5 {[%clk 0:00:42.2]} 47.
Rf6 {[%clk 0:00:02.2]} 47... a4 {[%clk 0:00:38]} 48. Rf5+ {[%clk 0:00:02.2]}
48... Ke6 {[%clk 0:00:38.3]} 49. Re5+ {[%clk 0:00:01.9]} 49... Kd6 {[%clk
0:00:38.6]} 50. Ra5 {[%clk 0:00:02.2]} 50... Rxc2 {[%clk 0:00:34.7]} 51. Rxa4
{[%clk 0:00:01.9]} 51... Rc3 {[%clk 0:00:34.8]} 52. Rf4 {[%clk 0:00:02.2]} 52...
Kd5 {[%clk 0:00:34.1]} 53. Rg4 {[%clk 0:00:02.7]} 53... Rc1 {[%clk 0:00:34.1]}
54. Rf4 {[%clk 0:00:03]} 54... Rf1 {[%clk 0:00:32.4]} 55. Rg4 {[%clk 0:00:02.8]}
55... Rb1 {[%clk 0:00:32]} 56. Rf4 {[%clk 0:00:03]} 56... Ke6 {[%clk 0:00:31]}
57. Rg4 {[%clk 0:00:03]} 57... Kf5 {[%clk 0:00:31.5]} 58. Rf4+ {[%clk 0:00:03]}
58... Kg6 {[%clk 0:00:31.6]} 59. Rg4+ {[%clk 0:00:03.2]} 59... Kf6 {[%clk
0:00:32]} 60. Rf4+ {[%clk 0:00:03.5]} 60... Ke6 {[%clk 0:00:32.6]} 61. Rg4
{[%clk 0:00:03.7]} 61... Kd5 {[%clk 0:00:32.2]} 62. Rf4 {[%clk 0:00:03.7]} 62...
Rb8 {[%clk 0:00:29.3]} 63. Rg4 {[%clk 0:00:03.8]} 63... Rf8 {[%clk 0:00:28.6]}
64. Rf4 {[%clk 0:00:03.8]} 64... Rg8+ {[%clk 0:00:28.1]} 65. Rg4 {[%clk
0:00:04]} 65... Rxg4+ {[%clk 0:00:28.1]} 66. Kxg4 {[%clk 0:00:03.2]} 1/2-1/2

[Event "*** Titled Tuesday Blitz"]
[Site "Chess.com"]
[Date "2021.02.16"]
[Round "4"]
[White "jacky72"]
[Black "GOGIEFF"]
[Result "0-1"]
[WhiteElo "2697"]
[BlackElo "2899"]
[TimeControl "180+1"]
[EndTime "10:43:08 PST"]
[Termination "GOGIEFF won by resignation"]

1. d4 {[%clk 0:03:00.9]} 1... Nf6 {[%clk 0:02:58.5]} 2. c4 {[%clk 0:03:01.1]}
2... g6 {[%clk 0:02:58.7]} 3. Nc3 {[%clk 0:03:00.8]} 3... Bg7 {[%clk 0:02:58.9]}
4. e4 {[%clk 0:03:01.3]} 4... d6 {[%clk 0:02:59.2]} 5. Be2 {[%clk 0:03:01.8]}
5... O-O {[%clk 0:02:58.8]} 6. Bg5 {[%clk 0:03:02.4]} 6... Na6 {[%clk
0:02:57.8]} 7. Nf3 {[%clk 0:03:00.8]} 7... h6 {[%clk 0:02:49.5]} 8. Bh4 {[%clk
0:02:51.4]} 8... Qe8 {[%clk 0:02:49.6]} 9. e5 {[%clk 0:02:43.8]} 9... dxe5
{[%clk 0:02:46.1]} 10. Nxe5 {[%clk 0:02:44.7]} 10... c5 {[%clk 0:02:44.5]} 11.
d5 {[%clk 0:02:41.1]} 11... Bf5 {[%clk 0:02:04.7]} 12. O-O {[%clk 0:02:38.4]}
12... Rd8 {[%clk 0:02:02.8]} 13. Qb3 {[%clk 0:01:46.7]} 13... Nb4 {[%clk
0:01:55.4]} 14. Rac1 {[%clk 0:01:46.9]} 14... Nfxd5 {[%clk 0:01:38.7]} 15. Nxd5
{[%clk 0:01:41.7]} 15... Nxd5 {[%clk 0:01:38.7]} 16. cxd5 {[%clk 0:01:34.4]}
16... Bxe5 {[%clk 0:01:38.3]} 17. Bb5 {[%clk 0:01:18.4]} 17... Bd7 {[%clk
0:01:37.3]} 18. Rxc5 {[%clk 0:01:13.9]} 18... Bd6 {[%clk 0:01:29.4]} 19. Bxd7
{[%clk 0:01:11.7]} 19... Qxd7 {[%clk 0:01:30.3]} 20. Rc3 {[%clk 0:01:04.7]}
20... b6 {[%clk 0:01:27.2]} 21. Rd1 {[%clk 0:00:59.9]} 21... Qf5 {[%clk
0:01:19.5]} 22. Bg3 {[%clk 0:00:58.4]} 22... Bxg3 {[%clk 0:01:10.8]} 23. hxg3
{[%clk 0:00:57.7]} 23... Rd7 {[%clk 0:01:09.5]} 24. Rcd3 {[%clk 0:00:53.6]}
24... Rfd8 {[%clk 0:01:08.6]} 25. Qc4 {[%clk 0:00:53.7]} 25... h5 {[%clk
0:01:07.5]} 26. a4 {[%clk 0:00:52.3]} 26... Rd6 {[%clk 0:01:05.8]} 27. Qa6
{[%clk 0:00:46.2]} 27... Qd7 {[%clk 0:01:00.7]} 28. Re3 {[%clk 0:00:38.9]} 28...
Kf8 {[%clk 0:00:55.4]} 29. Rde1 {[%clk 0:00:37.5]} 29... Re8 {[%clk 0:00:54.1]}
30. Re5 {[%clk 0:00:35.7]} 30... f6 {[%clk 0:00:49.9]} 31. Re6 {[%clk
0:00:28.4]} 31... Rxd5 {[%clk 0:00:49.8]} 32. Qc4 {[%clk 0:00:25.1]} 32... Rd6
{[%clk 0:00:43.3]} 33. R6e2 {[%clk 0:00:20]} 33... e5 {[%clk 0:00:43]} 34. b3
{[%clk 0:00:19.7]} 34... Kg7 {[%clk 0:00:42]} 35. Qe4 {[%clk 0:00:19.4]} 35...
Rd4 {[%clk 0:00:41.4]} 36. Qb1 {[%clk 0:00:18.8]} 36... Rd8 {[%clk 0:00:40.4]}
37. Qc2 {[%clk 0:00:17.7]} 37... h4 {[%clk 0:00:38.5]} 38. Re3 {[%clk
0:00:15.5]} 38... hxg3 {[%clk 0:00:34.2]} 39. Rxg3 {[%clk 0:00:16.4]} 39... Rd3
{[%clk 0:00:31.8]} 40. Rxd3 {[%clk 0:00:13.1]} 40... Qxd3 {[%clk 0:00:32.7]} 41.
Qxd3 {[%clk 0:00:14]} 41... Rxd3 {[%clk 0:00:32.4]} 42. Rc1 {[%clk 0:00:14.9]}
42... a5 {[%clk 0:00:24.7]} 43. Rc7+ {[%clk 0:00:13.2]} 43... Kh6 {[%clk
0:00:24.9]} 44. Rc6 {[%clk 0:00:13.7]} 44... Rxb3 {[%clk 0:00:25.3]} 45. Rxf6
{[%clk 0:00:14.2]} 45... Kg5 {[%clk 0:00:26]} 46. Rc6 {[%clk 0:00:13]} 46... e4
{[%clk 0:00:23.8]} 47. g3 {[%clk 0:00:11.6]} 47... Kf5 {[%clk 0:00:24.2]} 48.
Kg2 {[%clk 0:00:11.5]} 48... Rb2 {[%clk 0:00:24.5]} 49. Kf1 {[%clk 0:00:10.4]}
49... g5 {[%clk 0:00:24.2]} 50. Ke1 {[%clk 0:00:09.7]} 50... Kg4 {[%clk
0:00:23.3]} 51. Re6 {[%clk 0:00:09.9]} 51... Kf3 {[%clk 0:00:22.7]} 52. Rf6+
{[%clk 0:00:09.7]} 52... Kg2 {[%clk 0:00:23]} 53. Rf5 {[%clk 0:00:08.8]} 53...
Rb4 {[%clk 0:00:19.2]} 54. Rf6 {[%clk 0:00:07.4]} 54... Rxa4 {[%clk 0:00:18.2]}
55. Rxb6 {[%clk 0:00:07]} 55... Ra1+ {[%clk 0:00:18.6]} 56. Ke2 {[%clk
0:00:07.6]} 56... Ra2+ {[%clk 0:00:19.2]} 57. Ke3 {[%clk 0:00:08.3]} 57... Rxf2
{[%clk 0:00:19.8]} 58. Kxe4 {[%clk 0:00:05.6]} 58... Kxg3 {[%clk 0:00:19.7]} 59.
Rb5 {[%clk 0:00:06.1]} 59... g4 {[%clk 0:00:18.6]} 60. Rxa5 {[%clk 0:00:06.4]}
60... Kg2 {[%clk 0:00:19]} 61. Ke3 {[%clk 0:00:05.9]} 61... g3 {[%clk
0:00:19.3]} 62. Rg5 {[%clk 0:00:06.1]} 62... Rf8 {[%clk 0:00:18.9]} 63. Ke2
{[%clk 0:00:06]} 63... Kh2 {[%clk 0:00:18.9]} 64. Rh5+ {[%clk 0:00:05.8]} 64...
Kg1 {[%clk 0:00:19.3]} 65. Rh8 {[%clk 0:00:05]} 65... Rxh8 {[%clk 0:00:17.6]}
0-1